bitfinex-derivatives/quotes_SOLF0:USTF0_20260215
["timestamp","ask_amount","ask_price","bid_price","bid_amount"]
[1771123956721,438.85523706,88.088,88.047,3.86701909]
[1771123956869,365.56193706,88.088,88.047,3.86701909]
[1771123957072,310.96513706,88.088,88.047,3.86701909]
[1771123957372,258.01613706,88.088,88.047,3.86701909]
[1771123957578,315.16,88.107,88.047,3.86701909]
[1771123957767,315.16,88.107,88.067,10.225]
[1771123958770,3.68483706,88.099,88.047,3.86701909]
[1771123959681,3.68483706,88.069,88.021,3.86701909]
[1771123960276,3.68483706,88.069,88.029,3.86701909]
[1771123963183,3.68483706,88.069,88.031,10.2292]
[1771123964479,3.68483706,88.069,88.029,3.86701909]
[1771123971083,2.40854669,88.08,88.03,10.2293]
[1771123971387,3.93797791,88.078,88.031,3.92645621]
[1771123975685,6.3465246,88.09,88.031,3.92645621]
[1771123975887,10.2224,88.091,88.031,3.92645621]
[1771123975888,3.93797791,88.089,88.031,3.92645621]
[1771123976796,3.93797791,88.089,88.033,3.92645621]
[1771123977291,3.93797791,88.089,88.041,3.92645621]
[1771123977594,10.2213,88.1,88.042,3.92645621]
[1771123977890,10.2213,88.1,88.051,3.92645621]
[1771123978696,3.93797791,88.094,88.051,3.92645621]
[1771123978993,3.93797791,88.089,88.039,3.92645621]
[1771123979790,14.16057791,88.089,88.039,3.92645621]
[1771123980295,3.93797791,88.088,88.039,3.92645621]
[1771123980693,3.93797791,88.088,88.013,28.08718199]
[1771123980694,3.93797791,88.116,88.061,3.92645621]
[1771123980897,3.93797791,88.116,88.071,3.92645621]
[1771123981587,3.93797791,88.116,88.08,6.3350029]
[1771123981786,10.2186,88.123,88.081,3.92645621]
[1771123982293,14.15657791,88.123,88.081,3.92645621]
[1771123982492,3.93797791,88.123,88.081,3.92645621]
[1771123985396,3.93797791,88.123,88.065,3.92645621]
[1771123986002,3.93797791,88.123,88.081,3.92645621]
[1771123986805,3.93797791,88.123,88.083,3.92645621]
[1771123995412,3.93797791,88.123,88.071,10.2246]
[1771123995713,3.90793381,88.119,88.071,10.2246]
[1771123996110,3.90793381,88.119,88.071,13.85986758]
[1771123996414,3.90793381,88.119,88.072,3.63526758]
[1771123997710,3.90793381,88.119,88.075,3.63526758]
[1771123998106,3.90793381,88.132,88.081,3.63526758]
[1771123998702,3.90793381,88.125,88.086,3.63526758]
[1771124008125,2.40517466,88.13,88.086,3.63526758]
[1771124008126,456.82793381,88.124,88.086,3.63526758]
[1771124008526,3.90793381,88.123,88.086,3.63526758]
[1771124009216,3.90793381,88.123,88.069,3.63526758]
[1771124009428,3.90793381,88.119,88.069,3.63526758]
[1771124010825,3.90793381,88.114,88.069,3.63526758]
[1771124011026,3.90793381,88.114,88.07,13.85996758]
[1771124011226,3.90793381,88.114,88.071,3.63526758]
[1771124014326,3.90793381,88.114,88.073,3.63526758]
[1771124015732,3.90793381,88.114,88.078,10.2237]
[1771124015931,3.90793381,88.114,88.078,13.85896758]
[1771124016124,3.90793381,88.114,88.079,3.63526758]
[1771124018326,463.1385,88.124,88.079,3.63526758]
[1771124018524,452.92,88.124,88.079,3.63526758]
[1771124018721,452.92,88.124,88.081,3.63526758]
[1771124019941,456.82793381,88.124,88.081,3.63526758]
[1771124020228,3.90793381,88.119,88.069,3.63526758]
[1771124021728,3.70713315,88.109,88.057,3.56523147]
[1771124021927,3.70713315,88.099,88.057,3.56523147]
[1771124022124,3.70713315,88.096,88.047,21.097134]
[1771124022329,3.70713315,88.089,88.046,3.56523147]
[1771124027530,3.93331269,88.087,88.046,3.56523147]
[1771124028532,284.16,88.093,88.046,3.56523147]
[1771124029133,10.2222,88.092,88.046,3.56523147]
[1771124029433,3.93331269,88.098,88.051,3.82610922]
[1771124032437,3.93331269,88.098,88.051,17.94132786]
[1771124032629,3.93331269,88.098,88.052,3.82610922]
[1771124032836,3.93331269,88.098,88.057,3.82610922]
[1771124033739,3.93331269,88.096,88.051,14.11521864]
[1771124033941,3.93331269,88.096,88.05,2.40517466]
[1771124034334,3.93331269,88.096,88.047,3.82610922]
[1771124034840,3.93331269,88.092,88.047,3.82610922]
[1771124036749,3.93331269,88.092,88.049,3.82610922]
[1771124037233,10.2225,88.09,88.049,3.82610922]
[1771124038646,10.2225,88.09,88.051,3.82610922]
[1771124039146,3.93331269,88.086,88.05,2.40517466]
[1771124040144,3.93331269,88.086,88.051,3.82610922]
[1771124040543,3.93331269,88.098,88.051,3.82610922]
[1771124040847,3.93331269,88.114,88.061,3.82610922]
[1771124041247,2.40517466,88.11,88.061,3.82610922]
[1771124041447,3.93331269,88.109,88.061,3.82610922]
[1771124041843,3.93331269,88.104,88.061,3.82610922]
[1771124042643,10.2214,88.099,88.061,3.82610922]
[1771124042947,3.93331269,88.104,88.061,3.82610922]
[1771124043749,10.2211,88.102,88.061,3.82610922]
[1771124044150,3.93331269,88.104,88.061,3.82610922]
[1771124045350,3.93331269,88.104,88.062,3.82610922]
[1771124045650,3.93331269,88.104,88.066,3.82610922]
[1771124046149,3.93331269,88.104,88.066,17.94132786]
[1771124046945,3.93331269,88.104,88.067,3.82610922]
[1771124047445,10.2189,88.121,88.071,3.82610922]
[1771124047650,3.93331269,88.127,88.081,3.82610922]
[1771124047946,10.2184,88.125,88.081,3.82610922]
[1771124048148,14.15171269,88.125,88.081,3.82610922]
[1771124050247,14.15171269,88.125,88.084,3.82610922]
[1771124053350,3.63513432,88.124,88.084,3.82610922]
[1771124053848,3.63513432,88.119,88.084,3.82610922]
[1771124054053,3.63513432,88.119,88.073,14.11521864]
[1771124054354,3.63513432,88.119,88.067,14.11521864]
[1771124055150,3.63513432,88.119,88.072,14.11521864]
[1771124055650,3.63513432,88.119,88.072,17.78604515]
[1771124055851,3.63513432,88.119,88.073,3.67082651]
[1771124057849,3.63513432,88.119,88.075,13.89492651]
[1771124059153,3.63513432,88.119,88.076,3.67082651]
[1771124062952,3.63513432,88.119,88.072,14.11521864]
[1771124063154,3.63513432,88.109,88.062,14.11521864]
[1771124063356,3.63513432,88.109,88.063,3.67082651]
[1771124064054,3.63513432,88.109,88.064,3.67082651]
[1771124064251,3.63513432,88.123,88.071,3.67082651]
[1771124064448,3.63513432,88.123,88.07,2.40494452]
[1771124064449,3.63513432,88.123,88.073,3.67082651]
[1771124065555,3.63513432,88.12,88.073,3.67082651]
[1771124066754,10.2189,88.121,88.073,3.67082651]
[1771124066755,13.85443432,88.117,88.073,3.67082651]
[1771124068153,3.63513432,88.116,88.073,3.67082651]
[1771124068555,3.63513432,88.114,88.073,3.67082651]
[1771124069855,10.2197,88.113,88.073,3.67082651]
[1771124071258,10.2197,88.113,88.074,3.67082651]
[1771124073261,10.2197,88.113,88.074,17.78604515]
[1771124073864,13.85483432,88.113,88.074,17.78604515]
[1771124074364,13.85483432,88.113,88.075,14.11521864]
[1771124074564,3.63513432,88.109,88.075,14.11521864]
[1771124077263,3.63513432,88.109,88.076,14.11521864]
[1771124077464,3.63513432,88.109,88.076,17.78604515]
[1771124080161,3.63513432,88.109,88.077,14.11521864]
[1771124081169,3.63513432,88.109,88.078,14.11521864]
[1771124082266,3.63513432,88.109,88.076,3.67082651]
[1771124082267,3.63513432,88.109,88.079,14.11521864]
[1771124083272,3.63513432,88.109,88.08,14.11521864]
[1771124084172,3.63513432,88.109,88.081,14.11521864]
[1771124088171,3.63513432,88.109,88.082,14.11521864]
[1771124090169,3.63513432,88.109,88.083,14.11521864]
[1771124092670,10.2192,88.118,88.083,14.11521864]
[1771124092869,439.64464683,88.139,88.088,3.71077341]
[1771124093071,3.80503835,88.137,88.093,14.11521864]
[1771124093870,10.2182,88.126,88.093,14.11521864]
[1771124094881,10.2182,88.126,88.092,14.11521864]
[1771124095071,10.2182,88.126,88.093,14.11521864]
[1771124095573,10.2182,88.126,88.09,14.11521864]
[1771124095979,10.2182,88.126,88.093,14.11521864]
[1771124096580,3.80503835,88.125,88.093,14.11521864]
[1771124096778,3.80503835,88.122,88.091,14.11521864]
[1771124097278,3.80503835,88.122,88.092,14.11521864]
[1771124097477,3.80503835,88.109,88.069,21.097134]
[1771124097782,3.80503835,88.109,88.064,3.71077341]
[1771124098882,10.221,88.103,88.064,3.71077341]
[1771124100380,10.2196,88.114,88.071,3.71077341]
[1771124100573,3.80503835,88.133,88.081,3.71077341]
[1771124101275,10.2183,88.126,88.081,3.71077341]
[1771124102481,3.80503835,88.133,88.081,3.71077341]
[1771124104287,3.80503835,88.133,88.091,3.71077341]
[1771124110089,3.80503835,88.155,88.101,3.71077341]
[1771124110292,3.80503835,88.166,88.117,3.71077341]
[1771124110496,266.72,88.153,88.117,3.71077341]
[1771124111789,266.72,88.153,88.119,10.219]
[1771124113387,3.92178237,88.152,88.1,3.61035128]
[1771124113593,3.92178237,88.149,88.1,3.61035128]
[1771124113796,3.92178237,88.139,88.089,3.61035128]
[1771124113993,3.92178237,88.139,88.08,2.40315203]
[1771124113994,3.92178237,88.139,88.091,3.61035128]
[1771124114692,3.92178237,88.139,88.091,13.83255128]
[1771124114996,3.92178237,88.139,88.092,3.61035128]
[1771124115702,3.92178237,88.139,88.096,3.61035128]
[1771124140720,3.58908064,88.149,88.101,3.69689625]
[1771124141720,3.58908064,88.149,88.107,3.69689625]
[1771124144524,10.2146,88.158,88.109,10.2201]
[1771124145224,3.68214544,88.157,88.11,3.85663094]
[1771124147731,3.68214544,88.166,88.112,3.85663094]
[1771124148122,3.68214544,88.166,88.121,3.85663094]
[1771124149028,3.68214544,88.181,88.121,3.85663094]
[1771124150630,3.68214544,88.177,88.125,3.85663094]
[1771124150830,3.68214544,88.177,88.13,2.40315203]
[1771124151032,3.68214544,88.177,88.131,3.85663094]
[1771124153828,3.68214544,88.174,88.131,3.85663094]
[1771124158526,22.10744222,88.229,88.13,2.40315203]
[1771124158527,3.68214544,88.188,88.133,3.85663094]
[1771124159034,3.68214544,88.188,88.141,3.85663094]
[1771124160231,3.68214544,88.188,88.145,3.85663094]
[1771124160631,3.68214544,88.188,88.146,10.2159]
[1771124160933,3.68214544,88.188,88.147,3.85663094]
[1771124161129,3.68214544,88.199,88.151,3.85663094]
[1771124161333,3.68214544,88.209,88.163,3.85663094]
[1771124167434,3.68214544,88.207,88.163,3.85663094]
[1771124169644,3.68214544,88.199,88.14,6.25978297]
[1771124169943,3.68214544,88.189,88.14,3.85663094]
[1771124170837,3.68214544,88.184,88.14,3.85663094]
[1771124171641,3.68214544,88.195,88.141,3.85663094]
[1771124171845,3.68214544,88.213,88.151,3.85663094]
[1771124172236,10.2094,88.203,88.161,3.85663094]
[1771124172844,3.68214544,88.213,88.161,3.85663094]
[1771124173146,3.61316268,88.203,88.161,3.85663094]
[1771124174444,3.61316268,88.203,88.15,2.40315203]
[1771124174637,3.61316268,88.203,88.147,3.67496411]
[1771124174839,3.61316268,88.201,88.147,3.67496411]
[1771124175046,3.61316268,88.199,88.147,3.67496411]
[1771124175642,3.61316268,88.198,88.147,3.67496411]
[1771124175842,3.61316268,88.198,88.135,3.67496411]
[1771124176241,3.61316268,88.198,88.13,2.40132211]
[1771124176242,3.61316268,88.194,88.137,3.67496411]
[1771124177649,3.61316268,88.194,88.14,3.67496411]
[1771124178151,3.61316268,88.209,88.151,3.67496411]
[1771124178346,3.61316268,88.209,88.162,3.67496411]
[1771124179755,3.61316268,88.209,88.164,10.2138]
[1771124179952,10.2071,88.223,88.17,2.40132211]
[1771124180253,3.61316268,88.226,88.181,3.67496411]
[1771124183062,3.61316268,88.22,88.169,3.67496411]
[1771124183554,3.61316268,88.22,88.171,3.67496411]
[1771124184159,14.03520442,88.219,88.171,3.67496411]
[1771124184358,3.82770442,88.218,88.171,3.67496411]
[1771124185558,3.82770442,88.215,88.171,3.67496411]
[1771124190462,3.82770442,88.209,88.159,3.85674438]
[1771124192759,3.82770442,88.207,88.159,3.85674438]
[1771124196462,3.82770442,88.207,88.161,3.85674438]
[1771124197969,3.82770442,88.205,88.161,3.85674438]
[1771124199864,10.2092,88.204,88.161,3.85674438]
[1771124200266,3.82770442,88.203,88.162,3.85674438]
[1771124201169,3.82770442,88.203,88.162,17.86516261]
[1771124201470,3.82770442,88.203,88.163,3.77678855]
[1771124203171,3.82770442,88.203,88.164,3.66914504]
[1771124206175,3.82770442,88.203,88.164,17.67756327]
[1771124206375,3.78184904,88.196,88.163,14.00841823]
[1771124206573,3.78184904,88.196,88.151,3.66914504]
[1771124206574,3.78184904,88.196,88.155,14.00841823]
[1771124206772,3.78184904,88.196,88.156,3.66914504]
[1771124210570,3.78184904,88.194,88.156,3.66914504]
[1771124211872,10.2097,88.2,88.16,2.40132211]
[1771124212171,10.2097,88.2,88.161,3.66914504]
[1771124212975,2.40132211,88.22,88.161,3.66914504]
[1771124212976,10.2104,88.194,88.161,3.66914504]
[1771124213276,3.78184904,88.193,88.156,14.00841823]
[1771124213576,3.78184904,88.193,88.156,17.67756327]
[1771124214372,3.78184904,88.193,88.157,3.66914504]
[1771124215870,10.2106,88.192,88.157,3.66914504]
[1771124216072,3.78184904,88.191,88.157,3.66914504]
[1771124216474,3.78184904,88.191,88.152,14.00841823]
[1771124217672,3.78184904,88.191,88.153,14.00841823]
[1771124218178,3.78184904,88.191,88.152,14.00841823]
[1771124218978,3.78184904,88.188,88.149,14.00841823]
[1771124219280,3.78184904,88.188,88.148,14.00841823]
[1771124219476,3.78184904,88.188,88.147,14.00841823]
[1771124220579,3.78184904,88.188,88.147,17.67756327]
[1771124220777,3.78184904,88.202,88.152,3.66914504]
[1771124220975,3.78184904,88.202,88.159,3.66914504]
[1771124221172,10.2096,88.201,88.159,3.66914504]
[1771124221376,13.99144904,88.201,88.159,3.66914504]
[1771124221775,10.2085,88.21,88.161,3.66914504]
[1771124221974,3.78184904,88.209,88.164,3.66914504]
[1771124222884,3.78184904,88.206,88.164,3.66914504]
[1771124223592,3.78184904,88.206,88.167,17.67756327]
[1771124224886,3.78184904,88.203,88.168,14.00841823]
[1771124225085,3.78184904,88.203,88.16,14.00841823]
[1771124225285,3.78184904,88.199,88.158,14.00841823]
[1771124225890,3.78184904,88.199,88.153,17.67756327]
[1771124226092,3.78184904,88.186,88.15,14.00841823]
[1771124227792,10.2114,88.185,88.15,14.00841823]
[1771124228288,10.2114,88.185,88.15,17.67756327]
[1771124229488,3.78184904,88.184,88.15,17.67756327]
[1771124232188,3.78184904,88.184,88.15,3.66914504]
[1771124236591,10.2105,88.193,88.15,3.66914504]
[1771124237588,10.2105,88.193,88.154,3.82313288]
[1771124239195,10.211,88.189,88.154,17.83155111]
[1771124240796,3.70356389,88.183,88.149,14.00841823]
[1771124242397,10.2117,88.182,88.149,14.00841823]
[1771124242596,6.1052283,88.19,88.15,3.82313288]
[1771124242792,3.70356389,88.189,88.15,3.82313288]
[1771124246203,3.70356389,88.189,88.151,3.82313288]
[1771124249198,3.70356389,88.189,88.152,3.82313288]
[1771124249798,3.70356389,88.189,88.159,14.00841823]
[1771124250301,3.70356389,88.189,88.16,14.00841823]
[1771124258312,3.70356389,88.201,88.161,3.82313288]
[1771124259208,3.70356389,88.201,88.161,17.83155111]
[1771124260210,3.70356389,88.201,88.161,3.82313288]
[1771124260509,3.70356389,88.198,88.161,3.82313288]
[1771124261011,3.58309377,88.196,88.148,3.75179697]
[1771124262813,3.58309377,88.194,88.148,3.75179697]
[1771124263713,10.2107,88.192,88.148,3.75179697]
[1771124263915,10.2107,88.192,88.156,17.77463834]
[1771124264419,13.98980718,88.19,88.156,17.77463834]
[1771124264611,3.77890718,88.189,88.156,17.77463834]
[1771124266220,10.2113,88.186,88.156,3.76622011]
[1771124266911,3.77890718,88.185,88.156,3.76622011]
[1771124267116,3.77890718,88.185,88.151,14.00841823]
[1771124267313,3.77890718,88.185,88.152,14.00841823]
[1771124268117,3.77890718,88.182,88.141,14.00841823]
[1771124268317,3.77890718,88.179,88.138,14.00841823]
[1771124270322,3.77890718,88.179,88.137,14.00841823]
[1771124272224,3.77890718,88.179,88.136,14.00841823]
[1771124272420,3.77890718,88.179,88.137,3.76622011]
[1771124273726,3.77890718,88.198,88.151,3.76622011]
[1771124273921,3.77890718,88.198,88.156,3.76622011]
[1771124274825,3.77890718,88.196,88.156,3.76622011]
[1771124283429,3.77890718,88.194,88.149,14.00841823]
[1771124283624,3.77890718,88.193,88.149,14.00841823]
[1771124284025,2.40166441,88.19,88.149,14.00841823]
[1771124284228,3.77890718,88.189,88.149,14.00841823]
[1771124288830,3.77890718,88.189,88.149,17.77463834]
[1771124289436,3.77890718,88.187,88.149,17.77463834]
[1771124296138,3.77890718,88.187,88.15,14.00841823]
[1771124296343,3.77890718,88.187,88.15,17.61272709]
[1771124298443,3.77890718,88.187,88.151,3.60430886]
[1771124301445,3.77890718,88.187,88.152,3.60430886]
[1771124303644,3.77890718,88.187,88.143,14.00841823]
[1771124303840,3.77890718,88.187,88.142,17.61272709]
[1771124304045,3.77890718,88.187,88.143,3.60430886]
[1771124304246,14.03626244,88.186,88.144,3.60430886]
[1771124306448,3.82496244,88.185,88.144,3.60430886]
[1771124306653,3.82496244,88.185,88.142,14.00841823]
[1771124306951,3.82496244,88.179,88.134,17.61272709]
[1771124307148,3.82496244,88.179,88.134,14.00841823]
[1771124307348,3.82496244,88.179,88.133,14.00841823]
[1771124307547,3.82496244,88.177,88.133,14.00841823]
[1771124307849,3.82496244,88.177,88.134,14.00841823]
[1771124308251,3.82496244,88.177,88.133,17.61272709]
[1771124308550,10.2123,88.178,88.133,17.61272709]
[1771124308551,3.82496244,88.175,88.133,17.61272709]
[1771124309851,3.82496244,88.175,88.134,3.60430886]
[1771124310550,14.03776244,88.173,88.134,3.60430886]
[1771124311348,3.82496244,88.17,88.134,3.60430886]
[1771124311643,3.82496244,88.169,88.132,14.00841823]
[1771124311846,3.82496244,88.169,88.124,14.00841823]
[1771124312244,3.82496244,88.169,88.123,14.00841823]
[1771124312851,3.82496244,88.159,88.123,14.00841823]
[1771124313250,3.82496244,88.159,88.122,17.61272709]
[1771124313448,3.82496244,88.159,88.123,3.60430886]
[1771124314148,10.2146,88.158,88.123,3.60430886]
[1771124314354,14.03956244,88.158,88.123,3.60430886]
[1771124316158,10.2148,88.156,88.123,3.60430886]
[1771124317454,3.82496244,88.157,88.123,3.60430886]
[1771124317655,10.2142,88.161,88.123,3.60430886]
[1771124327464,10.2145,88.159,88.123,3.60430886]
[1771124331867,13.79679905,88.159,88.123,3.60430886]
[1771124337466,3.58229905,88.158,88.123,3.60430886]
[1771124340873,3.58229905,88.189,88.133,3.82688879]
[1771124341071,3.58229905,88.179,88.133,3.82688879]
[1771124341265,257.11355536,88.224,88.115,14.00841823]
[1771124341266,3.58229905,88.159,88.115,14.00841823]
[1771124341466,15.89697347,88.216,88.098,14.00841823]
[1771124341467,2.40172784,88.13,88.098,14.00841823]
[1771124341667,3.58229905,88.119,88.079,14.00841823]
[1771124341869,3.58229905,88.119,88.074,3.82688879]
[1771124345874,3.58229905,88.118,88.063,3.82688879]
[1771124346082,3.58229905,88.109,88.063,3.82688879]
[1771124347980,3.58229905,88.109,88.051,3.82688879]
[1771124348177,2.40172784,88.07,88.028,3.82688879]
[1771124348375,3.58229905,88.069,88.028,3.82688879]
[1771124349580,3.58229905,88.059,88.011,3.82688879]
[1771124349785,158.9505,88.127,88.011,3.82688879]
[1771124349786,3.58229905,88.049,88.011,3.82688879]
[1771124353690,3.75816043,88.067,88.011,3.82688879]
[1771124354186,3.75816043,88.067,88.021,3.8356892]
[1771124354789,3.75816043,88.064,88.01,6.23741704]
[1771124354984,3.75816043,88.064,88.011,3.8356892]
[1771124355185,3.75816043,88.059,88.011,3.8356892]
[1771124355486,2.40172784,88.06,87.99,1.97661011]
[1771124355487,3.75816043,88.057,88.001,3.8356892]
[1771124355788,3.75816043,88.049,88.001,3.8356892]
[1771124356789,10.2281,88.041,88.001,3.8356892]
[1771124357989,13.98626043,88.041,88.001,3.8356892]
[1771124358291,3.75816043,88.04,88.001,3.8356892]
[1771124358480,3.75816043,88.038,88.001,3.8356892]
[1771124363794,13.98386043,88.062,88.011,3.8356892]
[1771124364002,13.98386043,88.062,88.021,3.8356892]
[1771124364297,2.40984417,88.08,88.021,3.8356892]
[1771124364298,10.2264,88.056,88.021,3.8356892]
[1771124364502,3.75816043,88.055,88.01,2.40984417]
[1771124364696,3.75816043,88.055,88.009,3.8356892]
[1771124365404,10.2268,88.052,88.009,3.8356892]
[1771124367405,10.2268,88.052,88.01,2.40984417]
[1771124367608,10.2268,88.052,88.011,3.8356892]
[1771124369511,13.98496043,88.052,88.011,3.8356892]
[1771124371012,3.75816043,88.051,88.011,3.8356892]
[1771124380222,3.75816043,88.051,88.001,3.8356892]
[1771124381523,3.75816043,88.051,88.0,2.40984417]
[1771124381524,3.75816043,88.051,88.003,3.63018252]
[1771124383616,10.2256,88.063,88.006,3.72043536]
[1771124383922,10.2256,88.063,88.011,3.72043536]
[1771124383923,3.84797614,88.062,88.011,3.72043536]
[1771124384118,3.84797614,88.06,88.013,3.72043536]
[1771124384514,3.84797614,88.059,88.002,3.72043536]
[1771124384824,3.84797614,88.049,88.002,3.72043536]
[1771124386119,3.84797614,88.049,88.0,2.40984417]
[1771124386120,3.84797614,88.049,88.004,3.72043536]
[1771124386727,3.84797614,88.035,87.978,3.72043536]
[1771124386923,3.84797614,88.029,87.978,3.72043536]
[1771124387729,3.84797614,88.028,87.978,3.72043536]
[1771124388531,3.84797614,88.018,87.963,3.72043536]
[1771124388926,3.84797614,88.016,87.966,3.72043536]
[1771124390028,3.84797614,88.016,87.969,3.72043536]
[1771124390828,3.84797614,88.016,87.961,3.72043536]
[1771124391033,3.84797614,88.009,87.943,3.72043536]
[1771124391634,3.84797614,88.003,87.951,3.72043536]
[1771124393737,3.84797614,88.001,87.951,3.72043536]
[1771124396983,3.84797614,88.016,87.961,3.72043536]
[1771124397136,3.84797614,88.016,87.971,3.72043536]
[1771124397738,3.84797614,87.996,87.956,3.72043536]
[1771124397944,3.84797614,87.996,87.945,3.72043536]
[1771124398738,2.40984417,88.0,87.945,3.72043536]
[1771124398739,3.84797614,87.994,87.945,3.72043536]
[1771124399843,14.08207614,87.99,87.945,3.72043536]
[1771124400243,3.84797614,87.989,87.945,3.72043536]
[1771124400449,3.84797614,87.985,87.945,3.72043536]
[1771124401647,3.84797614,87.981,87.945,3.72043536]
[1771124403244,159.1057,88.041,87.92,1.97813254]
[1771124403245,3.84797614,88.004,87.951,3.72043536]
[1771124404951,3.84797614,88.001,87.951,3.72043536]
[1771124407956,14.07917614,88.014,87.961,3.72043536]
[1771124408253,3.84797614,88.013,87.961,3.72043536]
[1771124413162,14.0771568,88.012,87.961,3.72043536]
[1771124413351,3.8456568,88.011,87.961,3.72043536]
[1771124413555,2.40984417,88.02,87.961,3.72043536]
[1771124413863,6.25550097,88.02,87.961,3.72043536]
[1771124414057,3.8456568,88.019,87.961,3.72043536]
[1771124414855,10.2317,88.01,87.961,3.72043536]
[1771124417564,10.2317,88.01,87.963,3.89683303]
[1771124418565,3.8456568,88.019,87.965,3.89683303]
[1771124419262,3.8456568,88.016,87.965,3.89683303]
[1771124420261,3.8456568,88.016,87.96,2.41112421]
[1771124420262,3.8456568,88.016,87.968,3.89683303]
[1771124422468,3.8456568,88.016,87.971,3.89683303]
[1771124423265,3.8456568,88.016,87.981,3.89683303]
[1771124424668,3.8456568,88.016,87.98,10.2351]
[1771124426372,3.8456568,88.016,87.981,3.89683303]
[1771124430571,3.8456568,88.035,87.981,3.89683303]
[1771124431268,3.8456568,88.035,87.984,3.89683303]
[1771124431568,3.8456568,88.035,88.001,3.89683303]
[1771124431760,3.8456568,88.035,87.992,21.097134]
[1771124431961,3.8456568,88.035,87.988,3.89683303]
[1771124432173,2.41112421,88.03,87.988,3.89683303]
[1771124432370,3.8456568,88.029,87.988,3.89683303]
[1771124434475,3.8456568,88.041,87.991,3.89683303]
[1771124436868,3.8456568,88.029,87.986,21.097134]
[1771124437068,3.8456568,88.029,87.979,3.89683303]
[1771124437468,10.2297,88.027,87.979,3.89683303]
[1771124437777,3.8456568,88.026,87.979,3.89683303]
[1771124438178,3.8456568,88.024,87.979,3.89683303]
[1771124439781,3.8456568,88.024,87.981,3.89683303]
[1771124439982,3.8456568,88.039,87.991,3.89683303]
[1771124441681,3.8456568,88.039,87.992,3.87968404]
[1771124445581,3.58657733,88.036,87.992,3.87968404]
[1771124446586,3.58657733,88.049,87.992,3.87968404]
[1771124447884,3.58657733,88.049,87.996,3.59419445]
[1771124448487,10.2274,88.048,87.996,3.59419445]
[1771124448791,3.58657733,88.047,87.996,3.59419445]
[1771124452692,3.58657733,88.047,87.998,14.13947641]
[1771124453093,3.58657733,88.047,87.999,3.59419445]
[1771124454195,3.58657733,88.047,88.001,3.59419445]
[1771124458001,3.58657733,88.047,88.0,2.41112421]
[1771124458002,3.58657733,88.047,88.004,3.59419445]
[1771124460097,3.58657733,88.047,88.005,3.59419445]
[1771124461705,3.58657733,88.073,88.021,3.59419445]
[1771124461905,3.58657733,88.073,88.031,3.59419445]
[1771124462795,3.58657733,88.07,88.031,3.59419445]
[1771124463204,3.58657733,88.059,88.012,14.13947641]
[1771124463402,3.58657733,88.059,88.006,17.73367086]
[1771124464811,3.58657733,88.052,88.006,17.73367086]
[1771124467213,3.58657733,88.052,88.007,3.59419445]
[1771124468215,3.58657733,88.052,88.008,3.59419445]
[1771124471208,3.58657733,88.052,88.009,3.59419445]
[1771124473110,3.58657733,88.052,88.009,17.73367086]
[1771124474108,3.94114255,88.019,87.965,3.79532618]
[1771124474308,3.94114255,88.032,87.971,3.79532618]
[1771124474504,3.94114255,88.032,87.981,3.79532618]
[1771124477311,10.2295,88.029,87.981,3.79532618]
[1771124480616,3.94114255,88.028,87.981,3.79532618]
[1771124480921,3.94114255,88.041,87.991,3.79532618]
[1771124481220,3.94114255,88.029,87.991,3.79532618]
[1771124484426,3.94114255,88.027,87.979,3.79532618]
[1771124485724,10.23,88.025,87.979,3.79532618]
[1771124485925,3.94114255,88.027,87.979,3.79532618]
[1771124486427,3.94114255,88.027,87.981,3.79532618]
[1771124490532,3.94114255,88.027,87.935,34.11]
[1771124490533,3.94114255,88.041,87.991,3.79532618]
[1771124491831,3.94114255,88.041,87.99,2.40976575]
[1771124491832,3.94114255,88.041,87.994,3.79532618]
[1771124493030,3.94114255,88.053,88.001,3.79532618]
[1771124493634,3.94114255,88.053,88.003,3.79532618]
[1771124493930,3.94114255,88.053,88.011,3.79532618]
[1771124494938,3.94114255,88.053,88.013,3.79532618]
[1771124495340,10.2242,88.075,88.02,2.40976575]
[1771124495636,3.94114255,88.074,88.021,3.79532618]
[1771124496438,3.94114255,88.074,88.031,3.79532618]
[1771124497136,3.94114255,88.086,88.041,3.79532618]
[1771124498233,3.94114255,88.086,88.03,2.40976575]
[1771124499239,3.94114255,88.086,88.03,6.20509193]
[1771124499837,3.94114255,88.086,88.032,3.79532618]
[1771124500935,3.94114255,88.086,88.03,2.40976575]
[1771124500936,3.94114255,88.086,88.037,3.69150561]
[1771124501831,11.06762736,88.13,88.01,21.21709659]
[1771124501832,2.40976575,88.06,88.01,21.21709659]
[1771124502037,3.74388545,88.049,87.989,3.69150561]
[1771124502238,3.74388545,88.039,87.989,3.69150561]
[1771124502641,3.74388545,88.039,87.99,10.234]
[1771124503041,3.74388545,88.039,87.99,13.8030091]
[1771124505241,3.92075552,88.029,87.981,10.2351]
[1771124505744,3.92075552,88.029,87.981,13.8041091]
[1771124506045,3.92075552,88.029,87.982,3.5690091]
[1771124508742,3.92075552,88.029,87.97,2.40976575]
[1771124509046,3.92075552,88.019,87.969,3.5690091]
[1771124509839,3.92075552,88.019,87.971,3.5690091]